[Event "*** SCC Grand Prix: Titled Tuesday Blitz"]
[Site "Chess.com"]
[Date "2020.07.07"]
[Round "4"]
[White "Undisputed92"]
[Black "amintabatabaei"]
[Result "0-1"]
[WhiteElo "2564"]
[BlackElo "2924"]
[TimeControl "180+1"]
[EndTime "10:41:20 PDT"]
[Termination "amintabatabaei won by resignation"]

1. e4 {[%clk 0:03:00.9]} 1... c5 {[%clk 0:02:58.9]} 2. Nf3 {[%clk 0:03:00.5]}
2... d6 {[%clk 0:02:58.6]} 3. Bc4 {[%clk 0:03:00.5]} 3... Nc6 {[%clk 0:02:57.1]}
4. O-O {[%clk 0:03:00.1]} 4... Nf6 {[%clk 0:02:49.7]} 5. Re1 {[%clk 0:02:58.4]}
5... Bg4 {[%clk 0:02:49.1]} 6. h3 {[%clk 0:02:52.8]} 6... Bxf3 {[%clk
0:02:47.5]} 7. Qxf3 {[%clk 0:02:53.7]} 7... g6 {[%clk 0:02:46.7]} 8. c3 {[%clk
0:02:41.3]} 8... Bg7 {[%clk 0:02:47]} 9. Qd1 {[%clk 0:02:34.7]} 9... Qb6 {[%clk
0:02:44.8]} 10. Bf1 {[%clk 0:02:29.6]} 10... O-O {[%clk 0:02:44.1]} 11. Na3
{[%clk 0:02:29.7]} 11... Nd7 {[%clk 0:02:44.6]} 12. Nc4 {[%clk 0:02:29.4]} 12...
Qc7 {[%clk 0:02:45]} 13. a4 {[%clk 0:02:29.3]} 13... a6 {[%clk 0:02:44.2]} 14.
a5 {[%clk 0:02:24.2]} 14... Rab8 {[%clk 0:02:41.7]} 15. d3 {[%clk 0:02:21.5]}
15... e6 {[%clk 0:02:36.2]} 16. Bf4 {[%clk 0:02:14.4]} 16... Nde5 {[%clk
0:02:36.7]} 17. Qa4 {[%clk 0:01:56.2]} 17... Nxc4 {[%clk 0:02:24.9]} 18. dxc4
{[%clk 0:01:57.1]} 18... Be5 {[%clk 0:02:15.6]} 19. Be3 {[%clk 0:01:55.3]} 19...
Rfd8 {[%clk 0:02:10]} 20. Ra3 {[%clk 0:01:54.2]} 20... Bg7 {[%clk 0:02:06.6]}
21. b4 {[%clk 0:01:52.1]} 21... Qe7 {[%clk 0:02:00.8]} 22. Rb3 {[%clk
0:01:45.4]} 22... Rbc8 {[%clk 0:01:41.9]} 23. b5 {[%clk 0:01:38.5]} 23... Ne5
{[%clk 0:01:42]} 24. f4 {[%clk 0:01:34.9]} 24... Nd7 {[%clk 0:01:38]} 25. Reb1
{[%clk 0:01:32.1]} 25... Qe8 {[%clk 0:01:25.6]} 26. bxa6 {[%clk 0:01:29.7]}
26... bxa6 {[%clk 0:01:26.5]} 27. Rb7 {[%clk 0:01:28.8]} 27... Bxc3 {[%clk
0:01:24.3]} 28. Ra7 {[%clk 0:01:17.5]} 28... Bd4 {[%clk 0:01:03]} 29. Bxd4
{[%clk 0:01:08.5]} 29... cxd4 {[%clk 0:01:03.9]} 30. Rbb7 {[%clk 0:01:08.6]}
30... Nf6 {[%clk 0:00:39]} 31. Qxe8+ {[%clk 0:01:07.6]} 31... Nxe8 {[%clk
0:00:19.6]} 32. Rxf7 {[%clk 0:01:07.3]} 32... d5 {[%clk 0:00:18.8]} 33. exd5
{[%clk 0:00:58.7]} 33... exd5 {[%clk 0:00:19.7]} 34. cxd5 {[%clk 0:00:55.7]}
34... Rxd5 {[%clk 0:00:20]} 35. Rfe7 {[%clk 0:00:54.1]} 35... d3 {[%clk
0:00:18.9]} 36. Rad7 {[%clk 0:00:49.5]} 36... Nf6 {[%clk 0:00:15.3]} 37. Rg7+
{[%clk 0:00:42.7]} 37... Kh8 {[%clk 0:00:08.3]} 38. Rxh7+ {[%clk 0:00:42.5]}
38... Kg8 {[%clk 0:00:03.4]} 39. Rhg7+ {[%clk 0:00:37.7]} 39... Kh8 {[%clk
0:00:03.4]} 40. Rxd5 {[%clk 0:00:30.9]} 40... Nxd5 {[%clk 0:00:04.3]} 41. Rd7
{[%clk 0:00:31.1]} 41... Nxf4 {[%clk 0:00:04]} 42. Bxd3 {[%clk 0:00:29.9]} 42...
Rc5 {[%clk 0:00:03.9]} 43. Bxa6 {[%clk 0:00:23.7]} 43... Rxa5 {[%clk 0:00:04.2]}
44. Bf1 {[%clk 0:00:23.5]} 44... Ra1 {[%clk 0:00:03.6]} 45. Rd2 {[%clk
0:00:23.3]} 45... Kg7 {[%clk 0:00:03.3]} 46. Rf2 {[%clk 0:00:23.5]} 46... Nd5
{[%clk 0:00:03.3]} 47. Kh2 {[%clk 0:00:22.5]} 47... Ne3 {[%clk 0:00:04]} 48. Bd3
{[%clk 0:00:21.4]} 48... Rd1 {[%clk 0:00:04.6]} 49. Be4 {[%clk 0:00:20.6]} 49...
Nf1+ {[%clk 0:00:05]} 50. Rxf1 {[%clk 0:00:18.6]} 50... Rxf1 {[%clk 0:00:05.9]}
51. Bf3 {[%clk 0:00:19]} 51... Kf6 {[%clk 0:00:05.5]} 52. Kg3 {[%clk 0:00:19.9]}
52... Ra1 {[%clk 0:00:05.6]} 53. h4 {[%clk 0:00:20.3]} 53... Ra4 {[%clk
0:00:06.2]} 54. Kh3 {[%clk 0:00:20.5]} 54... Kf5 {[%clk 0:00:06.5]} 55. Kg3
{[%clk 0:00:20.8]} 55... Ra3 {[%clk 0:00:06.4]} 56. Kh3 {[%clk 0:00:19.9]} 56...
Kf4 {[%clk 0:00:07]} 57. Kh2 {[%clk 0:00:19.6]} 57... Ra1 {[%clk 0:00:07.7]} 58.
Bd5 {[%clk 0:00:18.4]} 58... Kg4 {[%clk 0:00:07.9]} 59. Be4 {[%clk 0:00:18.6]}
59... Ra6 {[%clk 0:00:07.1]} 60. g3 {[%clk 0:00:18.5]} 60... Ra2+ {[%clk
0:00:06.2]} 61. Kg1 {[%clk 0:00:16.7]} 61... Kxg3 {[%clk 0:00:06.2]} 62. Kf1
{[%clk 0:00:17.1]} 62... Ra6 {[%clk 0:00:06.4]} 63. Bd3 {[%clk 0:00:16.7]} 63...
Rf6+ {[%clk 0:00:05.9]} 64. Kg1 {[%clk 0:00:16.9]} 64... Kxh4 {[%clk 0:00:06.8]}
65. Bf1 {[%clk 0:00:16.7]} 65... g5 {[%clk 0:00:07.7]} 66. Bg2 {[%clk
0:00:17.1]} 66... Kg3 {[%clk 0:00:08.5]} 0-1

[Event "*** SCC Grand Prix: Titled Tuesday Blitz"]
[Site "Chess.com"]
[Date "2020.07.07"]
[Round "4"]
[White "awesomevishesh"]
[Black "sertalzin"]
[Result "1-0"]
[WhiteElo "2375"]
[BlackElo "2022"]
[TimeControl "180+1"]
[EndTime "10:41:20 PDT"]
[Termination "awesomevishesh won on time"]

1. d4 {[%clk 0:03:00.9]} 1... d5 {[%clk 0:02:58.6]} 2. c4 {[%clk 0:03:00.7]}
2... c6 {[%clk 0:02:59]} 3. Nf3 {[%clk 0:03:00.8]} 3... Nf6 {[%clk 0:02:59.3]}
4. e3 {[%clk 0:03:01.1]} 4... e6 {[%clk 0:02:59.4]} 5. b3 {[%clk 0:03:00.9]}
5... Nbd7 {[%clk 0:02:58.8]} 6. Bb2 {[%clk 0:03:00.2]} 6... g6 {[%clk
0:02:58.3]} 7. Bd3 {[%clk 0:03:00]} 7... Bg7 {[%clk 0:02:58.7]} 8. O-O {[%clk
0:03:00.7]} 8... O-O {[%clk 0:02:59]} 9. Nbd2 {[%clk 0:02:55.6]} 9... b6 {[%clk
0:02:58.5]} 10. Qe2 {[%clk 0:02:43.7]} 10... Bb7 {[%clk 0:02:58.5]} 11. Rfd1
{[%clk 0:02:42.8]} 11... Qc7 {[%clk 0:02:55.3]} 12. Rac1 {[%clk 0:02:41.5]}
12... Rac8 {[%clk 0:02:53.9]} 13. cxd5 {[%clk 0:02:12.4]} 13... exd5 {[%clk
0:02:50.4]} 14. b4 {[%clk 0:02:12.7]} 14... Qb8 {[%clk 0:02:45.8]} 15. Ne5
{[%clk 0:02:09.5]} 15... Nxe5 {[%clk 0:02:17.8]} 16. dxe5 {[%clk 0:02:09.4]}
16... Ne4 {[%clk 0:02:10.2]} 17. Bxe4 {[%clk 0:01:50.7]} 17... dxe4 {[%clk
0:02:09.2]} 18. Nxe4 {[%clk 0:01:51.3]} 18... Bxe5 {[%clk 0:02:07.6]} 19. Nf6+
{[%clk 0:01:33.3]} 19... Bxf6 {[%clk 0:01:41.7]} 20. Bxf6 {[%clk 0:01:34.2]}
20... c5 {[%clk 0:01:06.4]} 21. Qg4 {[%clk 0:01:28]} 21... cxb4 {[%clk
0:00:44.6]} 22. Qxb4 {[%clk 0:01:20.7]} 22... Rxc1 {[%clk 0:00:41.4]} 23. Rxc1
{[%clk 0:01:20.2]} 23... Rc8 {[%clk 0:00:38.7]} 24. Rd1 {[%clk 0:01:14.3]} 24...
Qc7 {[%clk 0:00:37.5]} 25. Qg4 {[%clk 0:00:30.1]} 25... Qc6 {[%clk 0:00:19.9]}
26. Ba1 {[%clk 0:00:23.3]} 26... h5 {[%clk 0:00:18]} 27. Qg5 {[%clk 0:00:21]}
27... Qc2 {[%clk 0:00:14.2]} 28. Rf1 {[%clk 0:00:06]} 28... Qf5 {[%clk
0:00:12.4]} 29. Qh6 {[%clk 0:00:04.9]} 29... f6 {[%clk 0:00:12.2]} 30. h3 {[%clk
0:00:05.3]} 30... Qg5 {[%clk 0:00:11.7]} 31. Qxg5 {[%clk 0:00:05]} 31... fxg5
{[%clk 0:00:11.5]} 32. Rd1 {[%clk 0:00:05.9]} 32... Rc7 {[%clk 0:00:10.7]} 33.
Bf6 {[%clk 0:00:06]} 33... g4 {[%clk 0:00:10.1]} 34. hxg4 {[%clk 0:00:06.3]}
34... hxg4 {[%clk 0:00:10.6]} 35. Rd6 {[%clk 0:00:06.3]} 35... Kf7 {[%clk
0:00:10.5]} 36. Kh2 {[%clk 0:00:06.5]} 36... Rc6 {[%clk 0:00:09.9]} 37. Rd7+
{[%clk 0:00:07]} 37... Kxf6 {[%clk 0:00:09.2]} 38. Rxb7 {[%clk 0:00:07.9]} 38...
Rc2 {[%clk 0:00:08.6]} 39. Rxa7 {[%clk 0:00:07.2]} 39... Rxf2 {[%clk 0:00:08.1]}
40. Kg3 {[%clk 0:00:07.7]} 40... Re2 {[%clk 0:00:07.6]} 41. Ra6 {[%clk
0:00:07.5]} 41... Rxe3+ {[%clk 0:00:06.8]} 42. Kxg4 {[%clk 0:00:07.9]} 42... Re6
{[%clk 0:00:07.5]} 43. a4 {[%clk 0:00:05.6]} 43... Ke5 {[%clk 0:00:05.4]} 44.
Kg5 {[%clk 0:00:05.5]} 44... Kd4 {[%clk 0:00:05.2]} 45. g4 {[%clk 0:00:03.7]}
45... Kc4 {[%clk 0:00:04.9]} 46. a5 {[%clk 0:00:04.3]} 46... Re5+ {[%clk
0:00:03.2]} 47. Kxg6 {[%clk 0:00:04.4]} 47... bxa5 {[%clk 0:00:02.3]} 48. g5
{[%clk 0:00:04.4]} 48... Kb4 {[%clk 0:00:02.1]} 49. Kf6 {[%clk 0:00:04.8]} 49...
Re1 {[%clk 0:00:01.8]} 50. g6 {[%clk 0:00:05.1]} 50... Rg1 {[%clk 0:00:02.3]}
51. g7 {[%clk 0:00:05]} 51... a4 {[%clk 0:00:02.6]} 52. Kf7 {[%clk 0:00:03.2]}
52... a3 {[%clk 0:00:02.6]} 53. Rg6 {[%clk 0:00:02.4]} 53... Rxg6 {[%clk
0:00:02.3]} 54. Kxg6 {[%clk 0:00:02.8]} 54... a2 {[%clk 0:00:03.2]} 55. g8=Q
{[%clk 0:00:03.2]} 55... a1=Q {[%clk 0:00:04.1]} 56. Qb8+ {[%clk 0:00:03.1]}
56... Kc3 {[%clk 0:00:03.7]} 57. Qe5+ {[%clk 0:00:03]} 57... Kc2 {[%clk
0:00:03]} 58. Qxa1 {[%clk 0:00:03.9]} 1-0

[Event "*** SCC Grand Prix: Titled Tuesday Blitz"]
[Site "Chess.com"]
[Date "2020.07.07"]
[Round "4"]
[White "RaphCamora"]
[Black "jonychess03"]
[Result "0-1"]
[WhiteElo "2448"]
[BlackElo "2322"]
[TimeControl "180+1"]
[EndTime "10:41:21 PDT"]
[Termination "jonychess03 won by checkmate"]

1. e4 {[%clk 0:03:00.1]} 1... e6 {[%clk 0:02:58.3]} 2. d4 {[%clk 0:02:59.3]}
2... d5 {[%clk 0:02:59.2]} 3. Nd2 {[%clk 0:02:58.9]} 3... dxe4 {[%clk
0:02:57.7]} 4. Nxe4 {[%clk 0:02:58.1]} 4... Nd7 {[%clk 0:02:57.2]} 5. Nf3 {[%clk
0:02:56.3]} 5... Ngf6 {[%clk 0:02:57.5]} 6. Nxf6+ {[%clk 0:02:56.3]} 6... Nxf6
{[%clk 0:02:58.4]} 7. Bd3 {[%clk 0:02:56.3]} 7... c5 {[%clk 0:02:55.3]} 8. O-O
{[%clk 0:02:55]} 8... cxd4 {[%clk 0:02:54.4]} 9. Nxd4 {[%clk 0:02:47.5]} 9...
Be7 {[%clk 0:02:52.7]} 10. Bg5 {[%clk 0:02:38.2]} 10... O-O {[%clk 0:02:52.1]}
11. c3 {[%clk 0:02:29.7]} 11... a6 {[%clk 0:02:46.3]} 12. Qe2 {[%clk 0:02:23.9]}
12... Qc7 {[%clk 0:02:42]} 13. Rad1 {[%clk 0:02:16.2]} 13... Bd7 {[%clk
0:02:39.3]} 14. Bh4 {[%clk 0:02:06.8]} 14... Bc6 {[%clk 0:02:35.1]} 15. Bg3
{[%clk 0:02:04.6]} 15... Qb6 {[%clk 0:02:33.4]} 16. Nxc6 {[%clk 0:02:00]} 16...
Qxc6 {[%clk 0:02:29.9]} 17. Be5 {[%clk 0:01:55.4]} 17... Rad8 {[%clk 0:02:16.6]}
18. f4 {[%clk 0:01:43.5]} 18... Rfe8 {[%clk 0:02:09.2]} 19. h3 {[%clk
0:01:34.5]} 19... Nd5 {[%clk 0:02:00.8]} 20. Kh2 {[%clk 0:01:06.7]} 20... Bd6
{[%clk 0:01:38.1]} 21. Bb1 {[%clk 0:00:27.9]} 21... f5 {[%clk 0:01:10.2]} 22. g3
{[%clk 0:00:25.1]} 22... Qc7 {[%clk 0:00:57.1]} 23. Rfe1 {[%clk 0:00:24.5]}
23... Bxe5 {[%clk 0:00:56.8]} 24. Qxe5 {[%clk 0:00:24.2]} 24... Qxe5 {[%clk
0:00:56.2]} 25. Rxe5 {[%clk 0:00:24.2]} 25... Nxc3 {[%clk 0:00:26.4]} 26. Rxd8
{[%clk 0:00:13.9]} 26... Rxd8 {[%clk 0:00:27.3]} 27. bxc3 {[%clk 0:00:12.5]}
27... Rd2+ {[%clk 0:00:27.5]} 28. Kg1 {[%clk 0:00:12.7]} 28... Rd1+ {[%clk
0:00:27.3]} 29. Kf2 {[%clk 0:00:13.3]} 29... Rxb1 {[%clk 0:00:27.7]} 30. Rxe6
{[%clk 0:00:13.2]} 30... Rb2+ {[%clk 0:00:28.1]} 31. Re2 {[%clk 0:00:12.9]}
31... Rb1 {[%clk 0:00:21.2]} 32. Rd2 {[%clk 0:00:12.8]} 32... b5 {[%clk
0:00:19.8]} 33. Ke3 {[%clk 0:00:13.1]} 33... Rg1 {[%clk 0:00:18.9]} 34. Kf3
{[%clk 0:00:13]} 34... Rc1 {[%clk 0:00:19.1]} 35. Rd8+ {[%clk 0:00:03.6]} 35...
Kf7 {[%clk 0:00:18.9]} 36. Rc8 {[%clk 0:00:04.3]} 36... Rc2 {[%clk 0:00:16.4]}
37. Rc7+ {[%clk 0:00:04.9]} 37... Kf8 {[%clk 0:00:14.2]} 38. Rc8+ {[%clk
0:00:04.7]} 38... Ke7 {[%clk 0:00:13.8]} 39. Rc7+ {[%clk 0:00:05.6]} 39... Kd6
{[%clk 0:00:13.4]} 40. Rxg7 {[%clk 0:00:05.4]} 40... Rxc3+ {[%clk 0:00:14.1]}
41. Kf2 {[%clk 0:00:05.5]} 41... Ra3 {[%clk 0:00:14.9]} 42. Rxh7 {[%clk
0:00:04.9]} 42... Rxa2+ {[%clk 0:00:15.4]} 43. Ke3 {[%clk 0:00:05.1]} 43... Ra3+
{[%clk 0:00:15.7]} 44. Kf2 {[%clk 0:00:05.3]} 44... b4 {[%clk 0:00:15]} 45. g4
{[%clk 0:00:05.5]} 45... fxg4 {[%clk 0:00:13.7]} 46. hxg4 {[%clk 0:00:05.6]}
46... b3 {[%clk 0:00:13.8]} 47. Rb7 {[%clk 0:00:04.6]} 47... Ra2+ {[%clk
0:00:13.8]} 48. Ke3 {[%clk 0:00:04.7]} 48... a5 {[%clk 0:00:10.6]} 49. Rxb3
{[%clk 0:00:03.5]} 49... Ra1 {[%clk 0:00:10.7]} 50. Rd3+ {[%clk 0:00:03.7]}
50... Ke6 {[%clk 0:00:10.5]} 51. Ke4 {[%clk 0:00:04.2]} 51... a4 {[%clk
0:00:09.7]} 52. Rd4 {[%clk 0:00:02.5]} 52... a3 {[%clk 0:00:09.5]} 53. Kf3
{[%clk 0:00:01.6]} 53... a2 {[%clk 0:00:09.4]} 54. Re4+ {[%clk 0:00:01.4]} 54...
Kf6 {[%clk 0:00:09.5]} 55. Ra4 {[%clk 0:00:01.5]} 55... Rf1+ {[%clk 0:00:08.4]}
56. Kg2 {[%clk 0:00:02.2]} 56... a1=Q {[%clk 0:00:08.8]} 57. Rxa1 {[%clk
0:00:02.9]} 57... Rxa1 {[%clk 0:00:08.9]} 58. Kg3 {[%clk 0:00:03.8]} 58... Rg1+
{[%clk 0:00:07.9]} 59. Kf2 {[%clk 0:00:04.1]} 59... Rxg4 {[%clk 0:00:06.6]} 60.
Kf3 {[%clk 0:00:05]} 60... Kf5 {[%clk 0:00:07.4]} 61. Ke3 {[%clk 0:00:04.8]}
61... Rxf4 {[%clk 0:00:08.3]} 62. Ke2 {[%clk 0:00:05.5]} 62... Ke4 {[%clk
0:00:07.8]} 63. Kd2 {[%clk 0:00:06.4]} 63... Rf3 {[%clk 0:00:07.7]} 64. Kc2
{[%clk 0:00:07.3]} 64... Rd3 {[%clk 0:00:07.5]} 65. Kb2 {[%clk 0:00:08.2]} 65...
Kd4 {[%clk 0:00:07.9]} 66. Kc2 {[%clk 0:00:09.1]} 66... Kc4 {[%clk 0:00:07.6]}
67. Kb2 {[%clk 0:00:10]} 67... Rc3 {[%clk 0:00:06.4]} 68. Ka2 {[%clk 0:00:10.9]}
68... Rb3 {[%clk 0:00:06.1]} 69. Ka1 {[%clk 0:00:10.7]} 69... Kc3 {[%clk
0:00:06.6]} 70. Ka2 {[%clk 0:00:11.6]} 70... Kc2 {[%clk 0:00:07.1]} 71. Ka1
{[%clk 0:00:12.5]} 71... Ra3# {[%clk 0:00:07.5]} 0-1

[Event "*** SCC Grand Prix: Titled Tuesday Blitz"]
[Site "Chess.com"]
[Date "2020.07.07"]
[Round "4"]
[White "NarminSoyunlu"]
[Black "Sacbutt"]
[Result "0-1"]
[WhiteElo "2073"]
[BlackElo "2301"]
[TimeControl "180+1"]
[EndTime "10:41:26 PDT"]
[Termination "Sacbutt won on time"]

1. g3 {[%clk 0:02:59.7]} 1... Nf6 {[%clk 0:02:59]} 2. Bg2 {[%clk 0:02:56.3]}
2... d5 {[%clk 0:02:58.7]} 3. c4 {[%clk 0:02:53.2]} 3... e6 {[%clk 0:02:58.6]}
4. Nf3 {[%clk 0:02:52.2]} 4... Be7 {[%clk 0:02:58.8]} 5. O-O {[%clk 0:02:50.8]}
5... O-O {[%clk 0:02:58.8]} 6. d4 {[%clk 0:02:51.3]} 6... dxc4 {[%clk
0:02:57.2]} 7. Ne5 {[%clk 0:02:51.2]} 7... Nc6 {[%clk 0:02:56.3]} 8. Bxc6 {[%clk
0:02:51.2]} 8... bxc6 {[%clk 0:02:55.3]} 9. Nxc6 {[%clk 0:02:52.1]} 9... Qd6
{[%clk 0:02:53.3]} 10. Nxe7+ {[%clk 0:02:53]} 10... Qxe7 {[%clk 0:02:53.2]} 11.
Qa4 {[%clk 0:02:53.2]} 11... Qd6 {[%clk 0:02:27.8]} 12. Qxc4 {[%clk 0:02:48.3]}
12... Ba6 {[%clk 0:02:26.6]} 13. Qc2 {[%clk 0:02:38]} 13... Qxd4 {[%clk
0:02:24.9]} 14. Nc3 {[%clk 0:02:31.2]} 14... Rab8 {[%clk 0:02:06.2]} 15. Be3
{[%clk 0:02:15.5]} 15... Qb4 {[%clk 0:02:05.4]} 16. Rab1 {[%clk 0:02:01.6]}
16... Rb7 {[%clk 0:01:40.3]} 17. Rfd1 {[%clk 0:01:56.6]} 17... c5 {[%clk
0:01:36]} 18. Na4 {[%clk 0:01:39.5]} 18... Rc7 {[%clk 0:01:10]} 19. a3 {[%clk
0:01:29.7]} 19... Qc4 {[%clk 0:01:04.1]} 20. Qxc4 {[%clk 0:00:51.7]} 20... Bxc4
{[%clk 0:01:05]} 21. Bxc5 {[%clk 0:00:50.8]} 21... Bxe2 {[%clk 0:00:39.4]} 22.
Bxf8 {[%clk 0:00:48.4]} 22... Bxd1 {[%clk 0:00:38.3]} 23. Rxd1 {[%clk
0:00:45.5]} 23... Kxf8 {[%clk 0:00:38.1]} 24. Nc3 {[%clk 0:00:43]} 24... Ke7
{[%clk 0:00:35.1]} 25. Kg2 {[%clk 0:00:39.1]} 25... Rb7 {[%clk 0:00:31.7]} 26.
Rd2 {[%clk 0:00:38.7]} 26... h6 {[%clk 0:00:27.9]} 27. b4 {[%clk 0:00:38]} 27...
Rc7 {[%clk 0:00:25.5]} 28. Rd3 {[%clk 0:00:33.5]} 28... g6 {[%clk 0:00:23.6]}
29. a4 {[%clk 0:00:19.8]} 29... Nd7 {[%clk 0:00:23.7]} 30. Ne4 {[%clk
0:00:17.9]} 30... Ne5 {[%clk 0:00:22.2]} 31. Rc3 {[%clk 0:00:15.2]} 31... Rxc3
{[%clk 0:00:21]} 32. Nxc3 {[%clk 0:00:16.1]} 32... Kd6 {[%clk 0:00:19.8]} 33. f4
{[%clk 0:00:15.6]} 33... Nd3 {[%clk 0:00:18.6]} 34. b5 {[%clk 0:00:14.8]} 34...
Kc5 {[%clk 0:00:18.2]} 35. Kf3 {[%clk 0:00:14.1]} 35... Kb4 {[%clk 0:00:18.2]}
36. Ne4 {[%clk 0:00:13]} 36... Kxa4 {[%clk 0:00:18.2]} 37. Nd6 {[%clk
0:00:13.6]} 37... f6 {[%clk 0:00:17.4]} 38. Ke3 {[%clk 0:00:12.8]} 38... Nc5
{[%clk 0:00:16.9]} 39. Kd4 {[%clk 0:00:10.3]} 39... Nd7 {[%clk 0:00:17.1]} 40.
Kc4 {[%clk 0:00:06.7]} 40... Ka5 {[%clk 0:00:17.5]} 41. Ne8 {[%clk 0:00:05.3]}
41... Kb6 {[%clk 0:00:16.8]} 42. Ng7 {[%clk 0:00:04.2]} 42... e5 {[%clk
0:00:17.1]} 43. fxe5 {[%clk 0:00:04.7]} 43... Nxe5+ {[%clk 0:00:17.4]} 44. Kd5
{[%clk 0:00:04.6]} 44... Kxb5 {[%clk 0:00:18]} 45. Ke6 {[%clk 0:00:05.2]} 45...
Ng4 {[%clk 0:00:17.6]} 46. h3 {[%clk 0:00:05.2]} 46... Nf2 {[%clk 0:00:18]} 47.
h4 {[%clk 0:00:05.5]} 47... Ne4 {[%clk 0:00:17.6]} 48. Ne8 {[%clk 0:00:05.3]}
48... Nxg3 {[%clk 0:00:17.4]} 49. Kxf6 {[%clk 0:00:04.6]} 49... g5 {[%clk
0:00:16]} 50. hxg5 {[%clk 0:00:03.6]} 50... hxg5 {[%clk 0:00:16.5]} 51. Kxg5
{[%clk 0:00:04.5]} 51... a5 {[%clk 0:00:16.9]} 52. Nd6+ {[%clk 0:00:04.8]} 52...
Kc6 {[%clk 0:00:14.3]} 53. Nc4 {[%clk 0:00:04.8]} 53... a4 {[%clk 0:00:14]} 54.
Na3 {[%clk 0:00:03.6]} 54... Kc5 {[%clk 0:00:13.3]} 55. Kf4 {[%clk 0:00:04.1]}
55... Ne2+ {[%clk 0:00:12]} 56. Ke3 {[%clk 0:00:03.9]} 56... Nc3 {[%clk
0:00:12.6]} 57. Kd3 {[%clk 0:00:04.1]} 57... Kb4 {[%clk 0:00:13.2]} 58. Nc2+
{[%clk 0:00:03.4]} 58... Kb3 {[%clk 0:00:13.7]} 59. Nd4+ {[%clk 0:00:03.9]}
59... Kb2 {[%clk 0:00:14.2]} 60. Kc4 {[%clk 0:00:03.1]} 60... a3 {[%clk
0:00:11.5]} 61. Nb3 {[%clk 0:00:03]} 61... a2 {[%clk 0:00:11.3]} 62. Kb4 {[%clk
0:00:02.5]} 62... Nb1 {[%clk 0:00:10.3]} 63. Kc4 {[%clk 0:00:01.9]} 63... Nd2+
{[%clk 0:00:10]} 64. Kb4 {[%clk 0:00:02.2]} 64... Nxb3 {[%clk 0:00:09.1]} 0-1

[Event "*** SCC Grand Prix: Titled Tuesday Blitz"]
[Site "Chess.com"]
[Date "2020.07.07"]
[Round "4"]
[White "Skatchkov_V"]
[Black "Tashik"]
[Result "1/2-1/2"]
[WhiteElo "2540"]
[BlackElo "2373"]
[TimeControl "180+1"]
[EndTime "10:41:28 PDT"]
[Termination "Game drawn by repetition"]

1. c4 {[%clk 0:02:58.8]} 1... Nf6 {[%clk 0:02:57.7]} 2. Nf3 {[%clk 0:02:59]}
2... c5 {[%clk 0:02:56.2]} 3. Nc3 {[%clk 0:02:58.3]} 3... e6 {[%clk 0:02:56.5]}
4. e3 {[%clk 0:02:58.9]} 4... d5 {[%clk 0:02:56.2]} 5. cxd5 {[%clk 0:02:57.6]}
5... exd5 {[%clk 0:02:55.7]} 6. d4 {[%clk 0:02:58]} 6... Nc6 {[%clk 0:02:55.9]}
7. Be2 {[%clk 0:02:53.6]} 7... Bd6 {[%clk 0:02:54.6]} 8. O-O {[%clk 0:02:53.7]}
8... O-O {[%clk 0:02:54.6]} 9. dxc5 {[%clk 0:02:53.4]} 9... Bxc5 {[%clk
0:02:55.5]} 10. a3 {[%clk 0:02:53.5]} 10... a6 {[%clk 0:02:53.9]} 11. b4 {[%clk
0:02:53.7]} 11... Ba7 {[%clk 0:02:50.9]} 12. Bb2 {[%clk 0:02:54]} 12... Re8
{[%clk 0:02:51.5]} 13. Qc2 {[%clk 0:02:48.5]} 13... Bg4 {[%clk 0:02:46.7]} 14.
Rad1 {[%clk 0:02:47.7]} 14... Rc8 {[%clk 0:02:45.2]} 15. Qb3 {[%clk 0:02:47.7]}
15... d4 {[%clk 0:02:29.9]} 16. exd4 {[%clk 0:02:34.4]} 16... Bxf3 {[%clk
0:02:23.9]} 17. Bxf3 {[%clk 0:02:34.3]} 17... Nxd4 {[%clk 0:02:24.5]} 18. Rxd4
{[%clk 0:02:27.8]} 18... Qxd4 {[%clk 0:01:53.7]} 19. Ne4 {[%clk 0:02:07.1]}
19... Qb6 {[%clk 0:01:50.9]} 20. Nc5 {[%clk 0:01:49]} 20... Rxc5 {[%clk
0:01:35]} 21. Bd4 {[%clk 0:01:49.3]} 21... Rc3 {[%clk 0:01:30.9]} 22. Bxc3
{[%clk 0:01:48.7]} 22... h5 {[%clk 0:01:01.6]} 23. h3 {[%clk 0:01:46.6]} 23...
Ne4 {[%clk 0:00:52.1]} 24. Bxe4 {[%clk 0:01:16.7]} 24... Rxe4 {[%clk 0:00:53]}
25. Bd2 {[%clk 0:01:08.8]} 25... Qe6 {[%clk 0:00:43]} 26. Qf3 {[%clk 0:01:02.9]}
26... h4 {[%clk 0:00:39]} 27. Bg5 {[%clk 0:01:02]} 27... Qg6 {[%clk 0:00:28.1]}
28. Qd3 {[%clk 0:00:55.1]} 28... Bxf2+ {[%clk 0:00:16.4]} 29. Kh1 {[%clk
0:00:38.4]} 29... Re1 {[%clk 0:00:13.8]} 30. Qd8+ {[%clk 0:00:33.4]} 30... Kh7
{[%clk 0:00:14.1]} 31. Rxe1 {[%clk 0:00:33.9]} 31... Bxe1 {[%clk 0:00:15]} 32.
Bxh4 {[%clk 0:00:34.8]} 32... Bc3 {[%clk 0:00:12.4]} 33. Qd5 {[%clk 0:00:26.4]}
33... Bf6 {[%clk 0:00:08.5]} 34. Bxf6 {[%clk 0:00:20.7]} 34... Qxf6 {[%clk
0:00:09.4]} 35. Qe4+ {[%clk 0:00:18.8]} 35... g6 {[%clk 0:00:08.9]} 36. Qxb7
{[%clk 0:00:18.2]} 36... Qf1+ {[%clk 0:00:08.7]} 37. Kh2 {[%clk 0:00:18.4]}
37... Qf4+ {[%clk 0:00:09.3]} 38. g3 {[%clk 0:00:19.1]} 38... Qd2+ {[%clk
0:00:07.7]} 39. Qg2 {[%clk 0:00:19.4]} 39... Qc3 {[%clk 0:00:07.5]} 40. Qa2
{[%clk 0:00:19.5]} 40... Kg7 {[%clk 0:00:07.4]} 41. h4 {[%clk 0:00:20.2]} 41...
Qe3 {[%clk 0:00:07.7]} 42. a4 {[%clk 0:00:20.2]} 42... Qe5 {[%clk 0:00:07.6]}
43. Qc2 {[%clk 0:00:14.7]} 43... f5 {[%clk 0:00:07]} 44. Qd2 {[%clk 0:00:12.8]}
44... Qe4 {[%clk 0:00:04.5]} 45. b5 {[%clk 0:00:12]} 45... Qxa4 {[%clk
0:00:03.2]} 46. b6 {[%clk 0:00:12.6]} 46... Qb5 {[%clk 0:00:03.5]} 47. Qc3+
{[%clk 0:00:12.1]} 47... Kh7 {[%clk 0:00:02.9]} 48. Qc7+ {[%clk 0:00:12.2]}
48... Kh6 {[%clk 0:00:03.5]} 49. Qf4+ {[%clk 0:00:10.4]} 49... Kh7 {[%clk
0:00:02.5]} 50. Qc7+ {[%clk 0:00:10.5]} 50... Kh6 {[%clk 0:00:02.2]} 51. h5
{[%clk 0:00:06.3]} 51... Qe2+ {[%clk 0:00:02.1]} 52. Kh3 {[%clk 0:00:06.7]}
52... Qxh5+ {[%clk 0:00:02.3]} 53. Kg2 {[%clk 0:00:07.6]} 53... Qe2+ {[%clk
0:00:03.2]} 54. Kh3 {[%clk 0:00:08.2]} 54... Qh5+ {[%clk 0:00:03.4]} 55. Kg2
{[%clk 0:00:08.3]} 55... Qe2+ {[%clk 0:00:04.3]} 56. Kh1 {[%clk 0:00:09.2]}
56... Qf1+ {[%clk 0:00:04.4]} 57. Kh2 {[%clk 0:00:09.5]} 57... Qe2+ {[%clk
0:00:05]} 58. Kh3 {[%clk 0:00:09.9]} 58... Qh5+ {[%clk 0:00:05.1]} 1/2-1/2